Cogmind - Beta 16 @@@ ROGUE MODE // 2026.01.21 @ 23:14:13 Player: applejuice Result: Destroyed by S-10 Pest with Light Assault Rifle Performance ------------- Evolutions (1) 500 Regions Visited (3) 600 Robots Destroyed (17) 85 Value Destroyed (136) 136 Prototype IDs (0) 0 Alien Tech Used (0) 0 Bonus (0) 0 TOTAL SCORE: 1321 Bonus ------- None Cogmind --------- Core Integrity 0/400 Matter 289/300 Energy 99/100 System Corruption 0% Temperature Cool (0) Movement Core (50) Location -9/Mines Parts ------- > --- POWER (1) -------- (None) > --- PROPULSION (3) --- (None) > --- UTILITY (3) ------ Improved Propulsion Shielding > --- WEAPON (2) ------- Light Assault Rifle > --- INVENTORY (5) ---- Ion Engine Improved Propulsion Shielding Improved Propulsion Shielding Shield Generator Peak State ------------ > --- POWER ------------ (None) > --- PROPULSION ------- Flight Unit Flight Unit > --- UTILITY ---------- Improved Propulsion Shielding Improved Propulsion Shielding Improved Propulsion Shielding > --- WEAPON ----------- Small Laser Assault Rifle > --- INVENTORY -------- Ion Engine Medium Matter Pod Light Assault Rifle [Rating: 13] Favorites ----------- Power Light Ion Engine Engine Light Ion Engine Propulsion Aluminum Leg Leg Aluminum Leg Flight Unit Flight Unit Utility Small Storage Unit Device Improved Terrain Scanner Storage Small Storage Unit Protection Improved Propulsion Shielding Weapon Small Laser Energy Gun Small Laser Ballistic Gun Assault Rifle Build | -11 -10 -9 -9 ------- Run | Yrd Mat Mat Min Slots Evolved 2 | . . 2 . Power . | . . . . Propulsion 1 | . . 1 . Utility 1 | . . 1 . Weapon . | . . . . Parts Attached 17 | 9 1 7 . Power 1 | 1 . . . Engine 1 | 1 . . . Core . | . . . . Reactor . | . . . . Propulsion 4 | 2 . 2 . Treads . | . . . . Leg 2 | 2 . . . Wheel . | . . . . Hover . | . . . . Flight 2 | . . 2 . Utility 8 | 4 1 3 . Device 2 | 2 . . . Storage 3 | 2 1 . . Processor . | . . . . Hackware . | . . . . Protection 3 | . . 3 . Artifact . | . . . . Weapon 4 | 2 . 2 . Energy Gun 1 | 1 . . . Energy Cannon . | . . . . Ballistic Gun 3 | 1 . 2 . Ballistic Cannon . | . . . . Launcher . | . . . . Special Weapon . | . . . . Impact Weapon . | . . . . Slashing Weapon . | . . . . Piercing Weapon . | . . . . Special Melee Weapon . | . . . . Unidentified Prototypes . | . . . . Parts Lost 5 | . . 5 . Power . | . . . . Propulsion 2 | . . 2 . Utility . | . . . . Weapon 3 | . . 3 . Highest Loss Streak 5 | . . 5 . To Critical Strikes . | . . . . Average Backups 2 | 2 3 3 4 Power 1 | . 1 1 1 Propulsion . | . . . . Utility . | . . 1 3 Weapon . | . 1 . . Tool/Special . | . . . . Unused Backups 3 | . . 1 2 Power 1 | . . . 1 Propulsion . | . . . . Utility 2 | . . 1 1 Weapon . | . . . . Tool/Special . | . . . . Average Slot Usage (%) 68 | . 86 56 22 Leg 16 | . 28 6 . Flight 4 | . . 10 . Storage 18 | . 28 11 . Protection 4 | . . 9 11 Energy Gun 10 | . 14 9 . Ballistic Gun 11 | . 14 9 11 Peak Build Rating 13 | 9 7 13 4 Average Rating 6 | 6 6 6 4 On Entrance 4 | . 7 6 4 Avg Prop Armor Cover (%) . | . . . . Naked Turns . | . . . . Heaviest Build 25 | 13 25 25 3 Greatest Support 20 | 20 20 20 3 Greatest Overweight (x) 8 | 3 1 8 . Average Overweight (x) . | . . . . Largest Inventory Capacity 15 | 8 15 15 5 Average Capacity 8 | 7 14 9 5 Most Carried 6 | 4 4 6 4 Average Carried 2 | 2 3 3 4 Final Capacity 15 | 8 15 5 5 Final Carried 4 | 2 4 4 4 Class Distribution -------------------- 100% | Mutant Dominant Class ---------------- Mutant | -10/Materials Mutant | -9/Materials Mutant | -9/Mines Resources | -11 -10 -9 -9 ----------- Run | Yrd Mat Mat Min Matter Collected 410 | 351 . 59 . Remotely . | . . . . Salvage Created 481 | 379 45 57 . Parts 46 | 39 3 4 . Haulers Intercepted . | . . . . Recyclers Shooed 1 | 1 . . . Parts Field Recycled . | . . . . Retrieved Matter . | . . . . Parts Self-Destructed . | . . . . Prevented . | . . . . Parts Restored . | . . . . Kills | -11 -10 -9 -9 ------- Run | Yrd Mat Mat Min Combat Hostiles Destroyed 4 | . 1 3 . Guns 4 | . 1 3 . Classes Destroyed 5 | 3 1 1 . Worker 3 | 3 . . . Tunneler 9 | 9 . . . Recycler 1 | 1 . . . Swarmer 3 | . . 3 . Grunt 1 | . 1 . . Best Kill Streak 6 | 6 1 3 . Combat Bots Only 3 | . 1 3 . Max Kills in Single Turn 1 | 1 1 1 . Gunslinging . | . . . . Exploded . | . . . . Melee . | . . . . Uniques/NPCs Destroyed . | . . . . Combat | -11 -10 -9 -9 -------- Run | Yrd Mat Mat Min Hostile Shots Fired 133 | . 8 114 11 Missed 44 | . 2 41 1 Hits 89 | . 6 73 10 Projectile 89 | . 6 73 10 Critical Strikes 3 | . . 3 . Damage Taken 892 | . 68 750 74 Core 417 | . 12 361 44 Absorbed by Shields . | . . . . Redirected to Shielding 34 | . . 34 . Core Remaining (%) 97 | 100 95 . . Volleys Fired 46 | 22 6 15 3 Largest 2 | 2 2 2 1 Hottest 60 | 60 60 60 20 Shots Fired 80 | 43 12 22 3 Gun 80 | 43 12 22 3 Cannon . | . . . . Launcher . | . . . . Special . | . . . . Kinetic 46 | 22 6 15 3 Thermal 34 | 21 6 7 . Explosive . | . . . . Electromagnetic . | . . . . Robot Hit Streak 5 | 5 5 4 1 Robot Miss Streak 6 | 3 6 5 1 Penetration Max . | . . . . Secondary Targets . | . . . . Shots Hit Robots 40 | 23 6 10 1 Core Hits 21 | 14 2 5 . Critical Kills . | . . . . Critical Parts Destroyed 1 | . . 1 . Critical Strikes 1 | . . 1 . Destroy 1 | . . 1 . Melee Attacks . | . . . . Impact . | . . . . Slashing . | . . . . Piercing . | . . . . Sneak Attacks . | . . . . Combat Hostiles . | . . . . Follow-up Attacks . | . . . . Damage Inflicted 472 | 280 66 119 7 Guns 467 | 278 66 116 7 Cannons . | . . . . Explosions . | . . . . Melee . | . . . . Ramming 5 | 2 . 3 . Kinetic 223 | 99 32 85 7 Thermal 244 | 179 34 31 . Explosive . | . . . . Electromagnetic . | . . . . Impact . | . . . . Slashing . | . . . . Piercing . | . . . . Highest Corruption . | . . . . Average Corruption . | . . . . Corruption Purged . | . . . . Corruption Blocked . | . . . . Overload Shots . | . . . . Overflow Damage . | . . . . Projectiles . | . . . . Explosions . | . . . . Melee . | . . . . Knockbacks . | . . . . Impact . | . . . . Kinetic . | . . . . Secondary . | . . . . Self-Inflicted Damage 1 | . . 1 . Shots . | . . . . Rammed 1 | . . 1 . Targets Rammed 2 | 1 . 1 . Kicked 1 | 1 . . . Crushed . | . . . . Highest Temperature 5 | . 1 5 . Average Temperature 1 | . 1 3 . Received Heat Transfer 189 | . 36 153 . Siege Activations . | . . . . Martial Activations . | . . . . Shielding Activations . | . . . . Robots Disrupted . | . . . . Combat Hostiles . | . . . . Robots Corrupted . | . . . . Combat Hostiles . | . . . . Parts Fried . | . . . . Impact Corruptions . | . . . . Robots Melted . | . . . . Combat Hostiles . | . . . . Parts Melted . | . . . . Heat Transferred 550 | 400 75 75 . Parts Sabotaged . | . . . . Parts Stolen . | . . . . Parts Stripped . | . . . . Power Chain Reactions . | . . . . Alert | -11 -10 -9 -9 ------- Run | Yrd Mat Mat Min Maximum Alert Level . | . . . . Low Security (%) 100 | 100 100 100 100 Level 1 . | . . . . Level 2 . | . . . . Level 3 . | . . . . Level 4 . | . . . . Level 5 . | . . . . High Security . | . . . . Max Security . | . . . . Peak Influence 70 | 65 42 70 . Initial 42 | . 42 . . Average 4 | 3 14 25 . Influence Increases 195 | 65 30 100 . Destroy 0b10 Robot/C 80 | . 20 60 . Destroy 0b10 Robot/NC 65 | 65 . . . Destroy Leader 20 | . 10 10 . Lose Combat Pursuer 30 | . . 30 . Influence Decreases 195 | . 95 100 . Entered New Map 23 | . 23 . . Time Decay 142 | . 72 70 . Lost Part 30 | . . 30 . Squads Dispatched 1 | . 1 . . Investigation . | . . . . Extermination . | . . . . Reinforcement 1 | . 1 . . Assault . | . . . . Garrison . | . . . . Intercept . | . . . . Searches Triggered . | . . . . Construction Impeded . | . . . . Haulers Reinforced . | . . . . Active Scanning Responses . | . . . . Cargo Convoy Interrupts . | . . . . Stealth | -11 -10 -9 -9 --------- Run | Yrd Mat Mat Min Distress Signals 2 | . . 2 . Communications Jammed . | . . . . Distress Signals . | . . . . Times Spotted 28 | . 4 15 9 Peak Tracking Total 22 | . 2 12 22 Tactical Retreats 2 | . . 1 1 Traps | -11 -10 -9 -9 ------- Run | Yrd Mat Mat Min Traps Triggered . | . . . . Indirectly . | . . . . Trap Hack Attempts . | . . . . Triggered . | . . . . Disarmed . | . . . . Reprogrammed . | . . . . Reused . | . . . . Traps Extracted . | . . . . Installed . | . . . . Triggered . | . . . . Machines | -11 -10 -9 -9 ---------- Run | Yrd Mat Mat Min Machines Disabled . | . . . . Max in Single Turn . | . . . . Machines Repaired . | . . . . Machines Dismantled . | . . . . Machines Sabotaged . | . . . . Overloaded Fab Kills . | . . . . Hacking | -11 -10 -9 -9 --------- Run | Yrd Mat Mat Min Machines Accessed 1 | . 1 . . Terminals . | . . . . Fabricators . | . . . . Repair Stations . | . . . . Recycling Units 1 | . 1 . . Scanalyzers . | . . . . Garrison Access . | . . . . Total Hacks 2 | . 2 . . Successful 2 | . 2 . . Failed . | . . . . Catastrophic . | . . . . Database Lockouts . | . . . . Manual 1 | . 1 . . Terminals . | . . . . Fabricators . | . . . . Repair Stations . | . . . . Recycling Units 2 | . 2 . . Scanalyzers . | . . . . Garrison Access . | . . . . Terminal Hacks . | . . . . Fabricator Hacks . | . . . . Repair Station Hacks . | . . . . Recycling Unit Hacks 1 | . 1 . . Retrieve Components 1 | . 1 . . Scanalyzer . | . . . . Garrison Access Hacks . | . . . . Unauthorized Hacks . | . . . . Terminals . | . . . . Fabricators . | . . . . Repair Stations . | . . . . Recycling Units . | . . . . Scanalyzers . | . . . . Garrison Access . | . . . . Data Cores Recovered . | . . . . Used . | . . . . Hacking Detections . | . . . . Full Trace Events . | . . . . Feedback Events . | . . . . Feedback Blocked . | . . . . Robot Schematics Acquired . | . . . . Robots Built . | . . . . Authchips . | . . . . Time . | . . . . Total Robot Build Rating . | . . . . Part Schematics Acquired . | . . . . Parts Built . | . . . . Authchips . | . . . . Time . | . . . . Total Part Build Rating . | . . . . Part Studies Acquired . | . . . . Parts Repaired . | . . . . Time . | . . . . Parts Recycled . | . . . . Recycled Matter . | . . . . Retrieved Matter . | . . . . Retrieved Components 2 | . 2 . . Parts Scanalyzed . | . . . . Part Schematics Acquired . | . . . . Parts Damaged . | . . . . Bothacking | -11 -10 -9 -9 ------------ Run | Yrd Mat Mat Min Used RIF Installer . | . . . . Robots Hacked . | . . . . Non-combat . | . . . . Combat . | . . . . Robot Hacks Applied . | . . . . Relay Couplers Released . | . . . . Fabnet Peak Effective % . | . . . . Robots Rewired . | . . . . Allies Hacked . | . . . . Hacks Repelled . | . . . . Allies | -11 -10 -9 -9 -------- Run | Yrd Mat Mat Min Total Allies . | . . . . Largest Group . | . . . . Highest-Rated Group . | . . . . Highest-Rated Ally . | . . . . Total Orders . | . . . . Ally Attacks . | . . . . Total Damage . | . . . . Kills . | . . . . Allies Corrupted . | . . . . Allies Melted . | . . . . Intel | -11 -10 -9 -9 ------- Run | Yrd Mat Mat Min Active Infowar (turns) 444 | 444 . . . Terrain 299 | 299 . . . Seismic 145 | 145 . . . Robot Analysis Total . | . . . . Derelict Logs Recovered . | . . . . Drone Launches . | . . . . Drone Recoveries . | . . . . Exploration | -11 -10 -9 -9 ------------- Run | Yrd Mat Mat Min Turns Passed 7172 | 6754 205 187 26 Spaces Moved 1858 | 1482 99 235 42 Core 77 | 18 . 17 42 Treads . | . . . . Legs 1581 | 1464 99 18 . Wheels . | . . . . Hover . | . . . . Flight 200 | . . 200 . Fastest Speed 37 | 50 120 37 50 Average Speed 114 | 120 186 56 50 Slowest Speed 520 | 200 190 520 50 Overloaded Moves . | . . . . Propulsion Burnouts . | . . . . Robots Hopped 9 | . . 9 . Potential Cave-ins . | . . . . Cave-ins Triggered . | . . . . Exploration Rate (%) 45 | 118 28 26 11 Regions Visited 3 Branch Regions 1 Pre-discovered Areas . | . . . . Known Exits Taken . | . . . . Unknown Exits Taken 3 | 1 1 1 . Scrap Searched . | . . . . Spaces Dug . | . . . . Terrain Destroyed . | . . . . Melee . | . . . . Projectile . | . . . . AOE . | . . . . Terrain Rammed . | . . . . Walls Destroyed . | . . . . Machines Disabled . | . . . . Actions | -11 -10 -9 -9 --------- Run | Yrd Mat Mat Min Total 6824 | 6408 108 262 46 Wait 4893 | 4889 . 3 1 Move 1839 | 1481 98 218 42 Hop 7 | . . 7 . Pick Up 4 | 2 1 1 . Fast Attach 15 | 9 . 6 . Attach 1 | . . 1 . Detach 8 | 2 1 5 . Swap 1 | . 1 . . Drop 8 | 2 1 5 . Fire 46 | 22 6 15 3 Melee . | . . . . Ram 1 | . . 1 . Kick 1 | 1 . . . Crush . | . . . . Escape Stasis . | . . . . Rewire . | . . . . Trap . | . . . . Miscellaneous . | . . . . Route ------- -11/Scrapyard -10/Materials -9/Materials -9/Mines History --------- Turn | Location | Event 7 | -11/Scrapyard | Discovered new exit (range 16) 6755 | -11/Scrapyard | Entered Materials 6760 | -10/Materials | Build established: Mutant 6950 | -10/Materials | Discovered new exit (range 6) 6960 | -10/Materials | Entered another Materials area 6960 | -9/Materials | Evolved 2 slots: Propulsion x1, Utility x1 7119 | -9/Materials | Discovered new exit (range 14) 7123 | -9/Materials | Core integrity fell below 50% 7144 | -9/Materials | Core integrity fell below 20% 7147 | -9/Materials | Entered Mines 7148 | -9/Mines | Assembled infested the area 7171 | -9/Mines | Lost 5 parts (2n3w) 7173 | -9/Mines | Destroyed by S-10 Pest with Light Assault Rifle Last Messages --------------- 07108_ Acquired Shield Generator. 07109_ Critical hit (Burn: +37). 07113_ Sml. Laser destroyed. 07115_ Flight Unit destroyed. 07119_ EXIT=FOUND 07120_ Flight Unit destroyed. 07129_ S-10 Pest destroyed. 07140_ Lgt. Assault Rifle destroyed. 07142_ Slammed into S-10 Pest. 07143_ Acquired 9 matter. 07143_ Acquired Lgt. Assault Rifle. 07145_ Acquired 2 matter. LOCATION=UNKNOWN GOAL=ESCAPE Something is scanning the area. 07148_ ALERT: Infestation in the mines, dispatching Demolisher response squad. 07168_ as-40123 sneak attacks. 07168_ T-07 Excavator destroyed. [Achievement: Just Browsing] Map ----- +----------------------------------------------------+ | | | | | | | | | ?????????????????????????????????????????????????? | | ?????????????????????????###?????????????????????? | | ???????????????????????## #####?????????????????? | | ???????????????????????# ##????????????????? | | ???????????????????????# #????????????????? | | ??????????????????######*% #????????????????? | | ??????????????????# |### ##????????????????? | | ???????????######## #### #??????????????????????? | | ????" #### #??????????????????????? | | ???????????########## #??????????????????????? | | ????????????????????# ## #??????????????????????? | | ????????????????????# ## ##?????????????????????? | | ???????????????????## # ##????????????????????? | | ??????????????###### ####?????????????????? | | ??????????????# ##????????????????? | | ?????????????# """ #????????????????? | | ????????????# """ #????????????????? | | ????????????# """ ### #????????????????? | | ????????????## ##?## #????????????????? | | ?????????????# #???## ##????????????????? | | ?????????????# #######s ####?????????????????? | | ?????????????# ### s@ #????????????????????? | | ?????????????## #??# ss #????????????????????? | | ??????????????###???# ######????????????????????? | | ???????????????????# ???????????????????????????? | | ??????????????????# ????????????????????????????? | | ??????????????????# ?????????????????????????????? | | ?????????????????# ??????????????????????????????? | | ?????????????????????????????????????????????????? | | ?????????????????????????????????????????????????? | | ?????????????????????????????????????????????????? | | ?????????????????????????????????????????????????? | | ?????????????????????????????????????????????????? | | ?????????????????????????????????????????????????? | | ?????????????????????????????????????????????????? | | ?????????????????????????????????????????????????? | | ?????????????????????????????????????????????????? | | ?????????????????????????????????????????????????? | | ?????????????????????????????????????????????????? | | ?????????????????????????????????????????????????? | | ?????????????????????????????????????????????????? | | ?????????????????????????????????????????????????? | | ?????????????????????????????????????????????????? | | ?????????????????????????????????????????????????? | | ?????????????????????????????????????????????????? | | ?????????????????????????????????????????????????? | +----------------------------------------------------+ Best States ------------- Heat Dissipation 28 Energy Generation 10 Energy Capacity 125 Matter Stores 400 Matter Capacity 400 Sight Range 16 Terrain Scan Range 16 Terrain Scan Density 10 Propulsion Shielding 66 Evasion (%) 62 Item Schematics ----------------- None Robot Schematics ------------------ None Fabricated ------------ Nothing Repaired ---------- Nothing Studied --------- None Alien Tech Used ----------------- None Achievements -------------- Just Browsing Challenges ------------ None Game ------ Seed FlyingParticleCartridge Manual? 0 Play Time 00:13:03 Cumulative 23.3 hours Start 2026.01.21 @ 23:01:35 End 2026.01.21 @ 23:14:13 Sessions 1 Manual Loads 0 Difficulty Rogue Special Mode None Game No. 26 Rogue 26 Adventurer 0 Explorer 0 Win Type - Total 0 Types 0/0/0/0/0/0/0/0/0/0 Lore% 21 Gallery% 25 Achievement% 21 Wizard Run 0 Options --------- Layout 1 ASCII 0 Keyboard 1 Movement Numpad Keybinds 0 Fullscreen 1 Font 48/Smallcaps Map View 50x35 Zoom Use 0% Tactical HUD 1 Map Filters NONE Filters NONE Steam 1 RUN: 57329e2d-9ce0-4a4e-8b6f-c76a62be537c